Cogmind - Beta 14 @@@ ROGUE MODE // 2025.03.28 @ 23:00:08 Player: SirusTheMadDJ Result: Destroyed by P-60 Hacker with Shock Rifle Performance ------------- Evolutions (2) 1000 Regions Visited (4) 800 Robots Destroyed (62) 310 Value Destroyed (1692) 1692 Prototype IDs (3) 60 Alien Tech Used (0) 0 Bonus (211) 211 TOTAL SCORE: 4073 Bonus ------- High Alert Combat Kills 11 Entered Garrisons 200 Cogmind --------- Core Integrity 0/550 Matter 259/300 Energy 265/265 System Corruption 1% Temperature Cool (9) Movement Walking (330) Ox3 Location -8/Garrison Parts ------- > --- POWER (1) -------- Improved Ion Engine > --- PROPULSION (4) --- Aluminum Leg Aluminum Leg Aluminum Leg > --- UTILITY (4) ------ Huge Storage Unit Salvage Targeting Computer Advanced Targeting Computer Target Analyzer > --- WEAPON (2) ------- Minigun Assault Cannon > --- INVENTORY (25) --- Light Nuclear Core Cesium-ion Thruster Heat Sink Authchip [R/Combat] Authchip [Propulsion] Heavy Particle Cannon Rocket Launcher Rocket Launcher Peak State ------------ > --- POWER ------------ Light Angular Momentum Engine > --- PROPULSION ------- Airjet Airjet > --- UTILITY ---------- Medium Storage Unit Weight Redist. System Salvage Targeting Computer Target Analyzer > --- WEAPON ----------- Heavy Particle Cannon Gauss Rifle > --- INVENTORY -------- Improved Ion Engine Nuclear Core Heat Sink Beam Rifle Beam Rifle Advanced Beam Rifle Assault Cannon Rocket Launcher Rocket Launcher [Rating: 28] Favorites ----------- Power Improved Ion Engine Engine Improved Ion Engine Power Core Nuclear Core Propulsion Aluminum Leg Leg Aluminum Leg Hover Unit Airjet Flight Unit Cesium-ion Thruster Utility Medium Storage Unit Device Weight Redist. System Storage Medium Storage Unit Processor Target Analyzer Weapon Battle Cannon Energy Gun Beam Rifle Energy Cannon Beam Cannon Ballistic Gun Minigun Ballistic Cannon Battle Cannon Launcher Rocket Launcher Build | -11 -10 -10 -8 -8 ------- Run | Yrd Mat Sub Mat Gar Slots Evolved 4 | . . . 4 . Power . | . . . . . Propulsion 2 | . . . 2 . Utility 2 | . . . 2 . Weapon . | . . . . . Parts Attached 65 | 6 9 5 45 . Power 8 | 1 1 1 5 . Engine 6 | 1 1 1 3 . Core 2 | . . . 2 . Reactor . | . . . . . Propulsion 20 | 2 . . 18 . Treads . | . . . . . Leg 12 | 2 . . 10 . Wheel . | . . . . . Hover 3 | . . . 3 . Flight 5 | . . . 5 . Utility 11 | 1 2 2 6 . Device 3 | . 1 2 . . Storage 4 | 1 1 . 2 . Processor 4 | . . . 4 . Hackware . | . . . . . Protection . | . . . . . Artifact . | . . . . . Weapon 26 | 2 6 2 16 . Energy Gun 7 | 1 1 . 5 . Energy Cannon 5 | . 2 . 3 . Ballistic Gun 8 | 1 3 . 4 . Ballistic Cannon 5 | . . 2 3 . Launcher 1 | . . . 1 . Special Weapon . | . . . . . Impact Weapon . | . . . . . Slashing Weapon . | . . . . . Piercing Weapon . | . . . . . Special Melee Weapon . | . . . . . Unidentified Prototypes 3 | . 1 . 2 . Parts Lost 27 | . 1 4 21 1 Power 3 | . . 1 2 . Propulsion 10 | . . 1 8 1 Utility 5 | . . 2 3 . Weapon 9 | . 1 . 8 . Highest Loss Streak 8 | . 1 1 8 1 To Critical Strikes . | . . . . . Average Slot Usage (%) 80 | . 87 76 77 97 Engine 10 | . 14 13 7 9 Leg 13 | . 17 8 13 33 Flight 2 | . . . 4 . Device 9 | . 13 10 6 . Storage 10 | . 14 14 7 9 Processor 9 | . . . 20 27 Energy Gun 3 | . 5 . 3 . Energy Cannon 6 | . 17 4 . . Ballistic Gun 4 | . 4 . 7 9 Ballistic Cannon 7 | . . 23 3 9 Peak Build Rating 28 | 6 9 10 28 24 Average Rating 14 | 4 7 9 21 23 On Entrance 9 | . 6 8 10 24 Naked Turns . | . . . . . Heaviest Build 95 | 14 24 24 95 95 Greatest Support 43 | 20 20 10 43 43 Greatest Overweight (x) 8 | . 2 7 8 2 Average Overweight (x) 1 | . 1 3 . 2 Largest Inventory Capacity 25 | 8 10 10 25 25 Average Capacity 9 | 7 9 10 9 25 Most Carried 10 | 3 10 10 10 8 Average Carried 6 | 1 6 8 6 8 Final Capacity 25 | 8 10 10 25 25 Final Carried 10 | 2 10 6 8 8 Class Distribution -------------------- 84% | Mutant 12% | Scavenger-Mutant Dominant Class ---------------- Mutant | -10/Materials Mutant | -10/Subcaves Mutant | -8/Materials Scavenger-Mutant | -8/Garrison Resources | -11 -10 -10 -8 -8 ----------- Run | Yrd Mat Sub Mat Gar Matter Collected 2119 | 203 213 210 1493 . Remotely 64 | . . 64 . . Salvage Created 2243 | . 247 229 1767 . Parts 126 | . 21 16 89 . Haulers Intercepted 5 | . 1 . 4 . Recyclers Shooed 7 | . 1 . 6 . Parts Field Recycled . | . . . . . Retrieved Matter . | . . . . . Parts Self-Destructed 6 | . . 6 . . Prevented . | . . . . . Kills | -11 -10 -10 -8 -8 ------- Run | Yrd Mat Sub Mat Gar Combat Hostiles Destroyed 42 | . 8 8 26 . Guns 25 | . 8 . 17 . Cannons 16 | . . 8 8 . AOE 1 | . . . 1 . Classes Destroyed 11 | . 4 1 6 . Worker 4 | . . . 4 . Builder 1 | . . . 1 . Hauler 5 | . 1 . 4 . Recycler 4 | . . . 4 . Operator 1 | . . . 1 . Watcher 5 | . 3 . 2 . Swarmer 11 | . 7 . 4 . Grunt 13 | . 1 . 12 . Duelist 2 | . . . 2 . Sentry 8 | . . . 8 . Subdweller 8 | . . 8 . . Best Kill Streak 6 | . 5 3 6 . Combat Bots Only 5 | . 5 3 3 . Max Kills in Single Turn 2 | . 2 1 2 . Gunslinging 1 | . 1 . . . Exploded 1 | . . . 1 . Melee . | . . . . . Uniques/NPCs Destroyed . | . . . . . Combat | -11 -10 -10 -8 -8 -------- Run | Yrd Mat Sub Mat Gar Hostile Shots Fired 361 | . 66 43 243 9 Missed 86 | . 20 12 53 1 Damage Taken 3716 | . 379 646 2567 124 Core 759 | . 81 126 522 30 Absorbed by Shields . | . . . . . Core Remaining (%) 58 | 100 . 17 . . Volleys Fired 258 | . 46 27 181 4 Largest 2 | . 2 2 2 2 Hottest 136 | . 120 120 136 69 Shots Fired 431 | . 84 54 285 8 Gun 256 | . 60 . 192 4 Cannon 173 | . 24 54 91 4 Launcher 2 | . . . 2 . Special . | . . . . . Kinetic 281 | . 19 44 210 8 Thermal 141 | . 58 10 73 . Explosive 2 | . . . 2 . Electromagnetic 7 | . 7 . . . Robot Hit Streak 15 | . 7 15 10 6 Robot Miss Streak 11 | . 11 3 5 2 Penetration Max 1 | . . . 1 . Secondary Targets 7 | . 5 . 2 . Max Gunslinging Chain 1 | . 1 . 1 . Shots Hit Robots 251 | . 36 35 176 4 Core Hits 97 | . 14 13 68 2 Critical Kills 2 | . . . 2 . Critical Parts Destroyed 3 | . . . 2 1 Critical Strikes 20 | . 2 3 14 1 Burn 4 | . 2 . 2 . Destroy 5 | . . . 4 1 Blast 11 | . . 3 8 . Melee Attacks . | . . . . . Impact . | . . . . . Slashing . | . . . . . Piercing . | . . . . . Sneak Attacks . | . . . . . Combat Hostiles . | . . . . . Follow-up Attacks . | . . . . . Damage Inflicted 5041 | . 516 615 3808 102 Guns 2610 | . 391 . 2199 20 Cannons 2202 | . 125 615 1380 82 Explosions 217 | . . . 217 . Melee . | . . . . . Ramming 12 | . . . 12 . Kinetic 3561 | . 144 475 2840 102 Thermal 1240 | . 337 140 763 . Explosive 193 | . . . 193 . Electromagnetic 35 | . 35 . . . Impact . | . . . . . Slashing . | . . . . . Piercing . | . . . . . Highest Corruption 1 | . . . . 1 Average Corruption 1 | . . . . 1 Corruption Purged . | . . . . . Corruption Blocked . | . . . . . Overload Shots . | . . . . . Overflow Damage 34 | . 6 . 28 . Projectiles 30 | . 6 . 24 . Explosions 4 | . . . 4 . Melee . | . . . . . Knockbacks 21 | . . 6 14 1 Impact . | . . . . . Kinetic 19 | . . 6 12 1 Secondary 2 | . . . 2 . Self-Inflicted Damage 104 | . . . 104 . Shots 1 | . . . 1 . Rammed 3 | . . . 3 . Targets Rammed 7 | . 1 . 6 . Kicked 4 | . 1 . 3 . Crushed . | . . . . . Highest Temperature 526 | . 300 36 526 18 Average Temperature 103 | . 77 20 122 12 Received Heat Transfer 1086 | . 6 144 936 . Effects 16 | . 1 . 15 . Shutdowns 3 | . . . 3 . Energy Bleed 1 | . . . 1 . Interference 6 | . . . 6 . Matter Decay 4 | . 1 . 3 . Damage (major) 2 | . . . 2 . Siege Activations . | . . . . . Robots Corrupted . | . . . . . Combat Hostiles . | . . . . . Parts Fried . | . . . . . Impact Corruptions . | . . . . . Robots Melted . | . . . . . Combat Hostiles . | . . . . . Parts Melted 3 | . 2 . 1 . Heat Transferred 3047 | . 1036 296 1715 . Parts Sabotaged . | . . . . . Parts Stolen . | . . . . . Parts Stripped . | . . . . . Power Chain Reactions . | . . . . . Alert | -11 -10 -10 -8 -8 ------- Run | Yrd Mat Sub Mat Gar Peak Influence 400 | . 212 . 400 208 Initial 208 | . . . . 208 Average 159 | . 66 . 217 206 Maximum Alert Level 2 | . 1 . 2 1 Low Security (%) 56 | 100 90 . 35 16 Level 1 43 | . 9 . 64 83 Level 2 . | . . . . . Level 3 . | . . . . . Level 4 . | . . . . . Level 5 . | . . . . . High Security . | . . . . . Max Security . | . . . . . Squads Dispatched 3 | . 1 . 2 . Investigation 1 | . 1 . . . Extermination . | . . . . . Reinforcement 2 | . . . 2 . Assault . | . . . . . Garrison . | . . . . . Intercept . | . . . . . Searches Triggered . | . . . . . Construction Impeded . | . . . . . Haulers Reinforced . | . . . . . Active Scanning Responses . | . . . . . Cargo Convoy Interrupts . | . . . . . Stealth | -11 -10 -10 -8 -8 --------- Run | Yrd Mat Sub Mat Gar Distress Signals 1 | . . . 1 . Communications Jammed . | . . . . . Distress Signals . | . . . . . Times Spotted 86 | . 18 8 57 3 Peak Tracking Total 6 | . 6 3 6 3 Tactical Retreats 3 | . . . 3 . Traps | -11 -10 -10 -8 -8 ------- Run | Yrd Mat Sub Mat Gar Traps Triggered 2 | . 2 . . . Indirectly . | . . . . . Trap Hack Attempts . | . . . . . Triggered . | . . . . . Disarmed . | . . . . . Reprogrammed . | . . . . . Reused . | . . . . . Traps Extracted . | . . . . . Installed . | . . . . . Triggered . | . . . . . Machines | -11 -10 -10 -8 -8 ---------- Run | Yrd Mat Sub Mat Gar Machines Disabled 5 | . . . 5 . Max in Single Turn 2 | . . . 2 . Machines Repaired . | . . . . . Machines Dismantled . | . . . . . Machines Sabotaged . | . . . . . Overloaded Fab Kills . | . . . . . Hacking | -11 -10 -10 -8 -8 --------- Run | Yrd Mat Sub Mat Gar Machines Accessed 3 | . 1 . 2 . Terminals 1 | . . . 1 . Fabricators . | . . . . . Repair Stations . | . . . . . Recycling Units 1 | . 1 . . . Scanalyzers . | . . . . . Garrison Access 1 | . . . 1 . Total Hacks 5 | . 2 . 3 . Successful 4 | . 2 . 2 . Failed 1 | . . . 1 . Catastrophic . | . . . . . Database Lockouts . | . . . . . Manual . | . . . . . Terminals 1 | . . . 1 . Fabricators . | . . . . . Repair Stations . | . . . . . Recycling Units 2 | . 2 . . . Scanalyzers . | . . . . . Garrison Access 2 | . . . 2 . Terminal Hacks 1 | . . . 1 . Record 1 | . . . 1 . Fabricator Hacks . | . . . . . Repair Station Hacks . | . . . . . Recycling Unit Hacks 2 | . 2 . . . Process 1 | . 1 . . . Report Inventory 1 | . 1 . . . Scanalyzer . | . . . . . Garrison Access Hacks 1 | . . . 1 . Unlock Access 1 | . . . 1 . Unauthorized Hacks . | . . . . . Terminals . | . . . . . Fabricators . | . . . . . Repair Stations . | . . . . . Recycling Units . | . . . . . Scanalyzers . | . . . . . Garrison Access . | . . . . . Data Cores Recovered . | . . . . . Used . | . . . . . Hacking Detections 2 | . 1 . 1 . Full Trace Events . | . . . . . Feedback Events . | . . . . . Feedback Blocked . | . . . . . Robot Schematics Acquired . | . . . . . Robots Built . | . . . . . Authchips . | . . . . . Time . | . . . . . Total Robot Build Rating . | . . . . . Part Schematics Acquired . | . . . . . Parts Built . | . . . . . Authchips . | . . . . . Time . | . . . . . Total Part Build Rating . | . . . . . Parts Repaired . | . . . . . Time . | . . . . . Parts Recycled . | . . . . . Recycled Matter 35 | . 35 . . . Retrieved Matter . | . . . . . Retrieved Components . | . . . . . Parts Scanalyzed . | . . . . . Part Schematics Acquired . | . . . . . Parts Damaged . | . . . . . Bothacking | -11 -10 -10 -8 -8 ------------ Run | Yrd Mat Sub Mat Gar Used RIF Installer . | . . . . . Robots Hacked . | . . . . . Non-combat . | . . . . . Combat . | . . . . . Robot Hacks Applied . | . . . . . Relay Couplers Released . | . . . . . Fabnet Peak Effective % . | . . . . . Robots Rewired . | . . . . . Allies Hacked . | . . . . . Hacks Repelled . | . . . . . Allies | -11 -10 -10 -8 -8 -------- Run | Yrd Mat Sub Mat Gar Total Allies . | . . . . . Largest Group . | . . . . . Highest-Rated Group . | . . . . . Highest-Rated Ally . | . . . . . Total Orders . | . . . . . Ally Attacks . | . . . . . Total Damage . | . . . . . Kills . | . . . . . Allies Corrupted . | . . . . . Allies Melted . | . . . . . Intel | -11 -10 -10 -8 -8 ------- Run | Yrd Mat Sub Mat Gar Robot Analysis Total . | . . . . . Derelict Logs Recovered . | . . . . . Drone Launches . | . . . . . Drone Recoveries . | . . . . . Exploration | -11 -10 -10 -8 -8 ------------- Run | Yrd Mat Sub Mat Gar Turns Passed 3703 | 60 977 937 1693 36 Spaces Moved 1590 | 46 399 301 834 10 Core 133 | 9 . 86 38 . Treads . | . . . . . Legs 1162 | 37 399 215 501 10 Wheels . | . . . . . Hover 34 | . . . 34 . Flight 261 | . . . 261 . Fastest Speed 32 | 50 120 150 32 260 Average Speed 174 | 106 205 282 124 260 Slowest Speed 450 | 120 260 400 450 260 Overloaded Moves . | . . . . . Propulsion Burnouts . | . . . . . Robots Hopped . | . . . . . Cave-ins Triggered . | . . . . . Exploration Rate (%) 35 | 4 67 19 79 6 Regions Visited 4 Branch Regions 1 Pre-discovered Areas . | . . . . . Known Exits Taken 1 | . . . 1 . Unknown Exits Taken 3 | 1 1 1 . . Scrap Searched 4 | . . 4 . . Spaces Dug . | . . . . . Terrain Destroyed 50 | . . 1 49 . Melee . | . . . . . Projectile 25 | . . 1 24 . AOE 25 | . . . 25 . Terrain Rammed . | . . . . . Walls Destroyed . | . . . . . Machines Disabled . | . . . . . Actions | -11 -10 -10 -8 -8 --------- Run | Yrd Mat Sub Mat Gar Total 2077 | 54 469 335 1205 14 Wait 120 | . 1 . 119 . Move 1587 | 45 398 300 834 10 Hop . | . . . . . Pick Up 25 | 3 10 1 11 . Fast Attach 31 | 5 3 . 23 . Attach 16 | 1 1 3 11 . Detach 2 | . . . 2 . Swap 18 | . 5 2 11 . Drop 13 | . 4 2 7 . Fire 258 | . 46 27 181 4 Melee . | . . . . . Ram 3 | . . . 3 . Kick 4 | . 1 . 3 . Crush . | . . . . . Escape Stasis . | . . . . . Rewire . | . . . . . Trap . | . . . . . Miscellaneous . | . . . . . Route ------- -11/Scrapyard -10/Materials (discovered 4 exits: [*Mat x2] / [*Min] / [*Sub]) -10/Subcaves -8/Materials (discovered 3 exits: [*Fac x2] / Gar) -8/Garrison History --------- Turn | Location | Event 3 | -11/Scrapyard | Discovered new exit (range 15) 61 | -11/Scrapyard | Entered Materials 128 | -10/Materials | Discovered new exit (range 8) 250 | -10/Materials | Discovered new exit (range 4) 309 | -10/Materials | Build established: Mutant 901 | -10/Materials | Discovered new exit (range 15) 1003 | -10/Materials | Discovered new exit (range 13) 1038 | -10/Materials | Entered Subcaves 1039 | -10/Subcaves | Ambushed by Subdwellers from Twisted Machinery 1623 | -10/Subcaves | Disturbed a concealed Subdweller 1871 | -10/Subcaves | Core integrity fell below 50% 1876 | -10/Subcaves | Core integrity fell below 20% 1915 | -10/Subcaves | Discovered new exit (range 16) 1975 | -10/Subcaves | Entered Materials 1975 | -8/Materials | Evolved 4 slots: Propulsion x2, Utility x2 2776 | -8/Materials | Lost 3 parts (1p2n) 2888 | -8/Materials | Core integrity fell below 50% 2892 | -8/Materials | Lost 4 parts (1n3w) 2959 | -8/Materials | Discovered new exit (range 15) 2969 | -8/Materials | Core integrity fell below 20% 2990 | -8/Materials | Lost 8 parts (1p3n1u3w) 3521 | -8/Materials | Build established: Scavenger-Mutant 3545 | -8/Materials | Discovered new exit (range 16) 3668 | -8/Materials | Identified exit to Garrison 3668 | -8/Materials | Entered Garrison 3704 | -8/Garrison | Destroyed by P-60 Hacker with Shock Rifle Last Messages --------------- Y-45 Defender Heat Sink blasted off. Y-45 Defender destroyed. Acquired 18 matter. EXIT=FOUND Acquired 24 matter. Y-45 Defender destroyed. Acquired 36 matter. U-05 Engineer builds a Wall. Dropped Med. Storage Unit. Connecting with Garrison Access... >>Unlock Access door unlocked. EXIT=UNLOCKED: GARRISON LOCATION=GARRISON GOAL=ESCAPE P-60 Hacker suffers critical hit (Destroy). Destroyed Shock Rifle. P-60 Hacker springs to life. P-60 Hacker knocked back. Imp. Aluminum Leg destroyed. Map ----- +----------------------------------------------------+ | | | | | | | ?????????????????????????????????? | | ?????????????????????????????????? | | ?????????????????????????????????? | | ?????????????????????????????????? | | ?????????????????????????????????? | | ?????????????????????????????????? | | ?????????????????????????????????? | | ?????????????????????????????????? | | ?????????????????????????????????? | | ?????????????????????????????????? | | ?????????#####???????????????????? | | ?????????# #???????????????????? | | ?????????# #???????????????????? | | ?????????# #???????????????????? | | ?????????# #???????????????????? | | ?????????# #???????????????????? | | ?????????# #???????????????????? | | ?????????# #???????????????????? | | ?????????# #???????????????????? | | ?????????# #???????????????????? | | ?????????# #???????????????????? | | ????###+## #### #?????????????? | | ??#% ppp@ ????????? | | ????###+## ????????? | | ?????????# ????????? | | ?????????################????????? | | ?????????????????????????????????? | | ?????????????????????????????????? | | ?????????????????????????????????? | | ?????????????????????????????????? | | ?????????????????????????????????? | | ?????????????????????????????????? | | ?????????????????????????????????? | | ?????????????????????????????????? | | ?????????????????????????????????? | | ?????????????????????????????????? | | ?????????????????????????????????? | | ?????????????????????????????????? | | ?????????????????????????????????? | | ?????????????????????????????????? | | ?????????????????????????????????? | | ?????????????????????????????????? | | ?????????????????????????????????? | | ?????????????????????????????????? | | ?????????????????????????????????? | | ?????????????????????????????????? | | ?????????????????????????????????? | +----------------------------------------------------+ Best States ------------- Heat Dissipation 31 Energy Generation 18 Energy Capacity 265 Matter Stores 300 Matter Capacity 300 Sight Range 16 Robot Scan Range 14 Terrain Scan Density 10 Additional Mass Support 6 Corruption Block 8 Evasion (%) 63 Targeting Accuracy 8 Target Analysis 5 Salvage Targeting 1 Authchip Count 2 Item Schematics ----------------- None Robot Schematics ------------------ None Fabricated ------------ Nothing Alien Tech Used ----------------- None Achievements -------------- None Challenges ------------ None Game ------ Seed ThermicLatentSpecial Manual? 0 Play Time 00:35:02 Cumulative 8.6 hours Start 2025.03.28 @ 19:27:08 End 2025.03.28 @ 23:00:08 Sessions 3 Manual Loads 0 Difficulty Rogue Special Mode None Game No. 19 Rogue 19 Adventurer 0 Explorer 0 Win Type - Total 0 Types 0/0/0/0/0/0/0/0/0 Lore% 4 Gallery% 14 Achievement% 14 Wizard Run 0 Options --------- Layout 1 ASCII 0 Keyboard 0 Movement Mouse Keybinds 0 Fullscreen 1 Font 24/Smallcaps Map View 50x35 Zoom Use 0% Tactical HUD 0 Map Filters NONE Filters NONE Steam 1 RUN: c844e389-c9e4-496c-9b6f-b8ed2056adc5